bitfinex/quotes_BTCUSD_20250608
["timestamp","ask_amount","ask_price","bid_price","bid_amount"]
[1749416849807,0.21640876,106280.0,106270.0,0.83110359]
[1749416851395,0.21640876,106280.0,106270.0,0.83210359]
[1749416852237,0.2070001,106280.0,106270.0,0.82269396]
[1749416853149,0.2070001,106280.0,106270.0,0.82269414]
[1749416853357,0.2070001,106280.0,106270.0,0.83210395]
[1749416856248,0.2070001,106280.0,106270.0,0.84151358]
[1749416856678,0.2070001,106280.0,106270.0,0.83210395]
[1749416856912,0.2070001,106280.0,106270.0,0.84151358]
[1749416857958,0.23679027,106290.0,106280.0,0.18818216]
[1749416858212,0.22059027,106290.0,106280.0,0.48203126]
[1749416858456,0.1980518,106290.0,106280.0,0.48203126]
[1749416859361,0.1980518,106290.0,106280.0,0.49244027]
[1749416861947,0.1980518,106290.0,106280.0,0.5018492]
[1749416864872,0.1980518,106290.0,106280.0,1.10032359]
[1749416866806,0.1980518,106290.0,106280.0,1.19672307]
[1749416868209,0.18864367,106290.0,106280.0,0.39124858]
[1749416868436,0.20484367,106290.0,106280.0,0.39124858]
[1749416872402,0.20484367,106290.0,106280.0,0.38183948]
[1749416873331,0.20484367,106290.0,106280.0,0.09739948]
[1749416875235,0.18864367,106290.0,106280.0,0.09739948]
[1749416879172,0.00047922,106290.0,106280.0,1.55441762]
[1749416879402,0.01929433,106290.0,106280.0,1.55206559]
[1749416879799,0.0287021,106290.0,106280.0,1.55206559]
[1749416880011,0.03811014,106290.0,106280.0,1.58032759]
[1749416880458,0.03811014,106290.0,106280.0,1.58232759]
[1749416880676,0.03811014,106290.0,106280.0,1.58132759]
[1749416881101,0.03811014,106290.0,106280.0,1.58332759]
[1749416881750,0.0287021,106290.0,106280.0,1.58332759]
[1749416883135,0.02870202,106290.0,106280.0,1.58332759]
[1749416883787,0.03811006,106290.0,106280.0,1.58332759]
[1749416884022,0.03811006,106290.0,106280.0,1.55506559]
[1749416884266,0.02870202,106290.0,106280.0,1.55506559]
[1749416884507,0.00988664,106290.0,106280.0,1.55506559]
[1749416884742,0.01929415,106290.0,106280.0,1.55506559]
[1749416884982,0.01929415,106290.0,106280.0,1.64138559]
[1749416885660,0.02870184,106290.0,106280.0,1.64138559]
[1749416888339,0.01929415,106290.0,106280.0,1.64138559]
[1749416888545,0.02870175,106290.0,106280.0,1.64138559]
[1749416889802,0.03810944,106290.0,106280.0,1.64138559]
[1749416890691,0.03810944,106290.0,106280.0,1.0429112]
[1749416890896,0.0475173,106290.0,106280.0,1.0429112]
[1749416892618,0.03810944,106290.0,106280.0,1.0429112]
[1749416893189,0.0475173,106290.0,106280.0,0.9565912]
[1749416893395,0.0475173,106290.0,106280.0,1.3272312]
[1749416894816,0.03810944,106290.0,106280.0,1.3272312]
[1749416895018,0.0475173,106290.0,106280.0,1.3272312]
[1749416900181,0.04751722,106290.0,106280.0,1.3272312]
[1749416901445,0.03810944,106290.0,106280.0,1.3272312]
[1749416902133,0.04751722,106290.0,106280.0,1.3272312]
[1749416902949,0.04751722,106290.0,106280.0,1.3109312]
[1749416905244,0.0381098,106290.0,106280.0,1.3109312]
[1749416905742,0.04751766,106290.0,106280.0,1.3109312]
[1749416906702,0.04751766,106290.0,106280.0,1.5609312]
[1749416907121,0.02870202,106290.0,106280.0,1.5609312]
[1749416907916,0.0381098,106290.0,106280.0,1.5609312]
[1749416908305,0.04751784,106290.0,106280.0,1.5609312]
[1749416912424,0.0381098,106290.0,106280.0,1.5609312]
[1749416912602,0.04751775,106290.0,106280.0,1.5609312]
[1749416913940,0.04751828,106290.0,106280.0,1.5609312]
[1749416916329,0.03811024,106290.0,106280.0,1.5609312]
[1749416917523,0.04751828,106290.0,106280.0,1.5609312]
[1749416922556,0.03811024,106290.0,106280.0,1.5609312]
[1749416925484,0.04751828,106290.0,106280.0,1.5453312]
[1749416925689,0.03811024,106290.0,106280.0,1.5453312]
[1749416926099,0.04751828,106290.0,106280.0,1.5453312]
[1749416930777,0.03811024,106290.0,106280.0,1.5453312]
[1749416932550,0.02870255,106290.0,106280.0,2.14380559]
[1749416932760,0.02870255,106290.0,106280.0,1.5453312]
[1749416932985,0.02870255,106290.0,106280.0,2.14380559]
[1749416933177,0.02870255,106290.0,106280.0,1.5453312]
[1749416937366,0.03811059,106290.0,106280.0,1.5453312]
[1749416944711,0.02870264,106290.0,106280.0,1.5453312]
[1749416945313,0.02870264,106290.0,106280.0,1.5735932]
[1749416946844,0.02870255,106290.0,106280.0,1.5735932]
[1749416947683,0.03811059,106290.0,106280.0,1.5735932]
[1749416948863,0.02870255,106290.0,106280.0,1.5735932]
[1749416954115,0.01929468,106290.0,106280.0,1.5735932]
[1749416957601,0.02870272,106290.0,106280.0,1.5735932]
[1749416958073,0.01929468,106290.0,106280.0,1.5735932]
[1749416960449,0.02870272,106290.0,106280.0,1.5735932]
[1749416962671,0.03811085,106290.0,106280.0,0.97511881]
[1749416962897,0.03811085,106290.0,106280.0,1.5735932]
[1749416963103,0.2418753,106290.0,106280.0,1.56418472]
[1749416963321,0.05371085,106290.0,106280.0,1.58300177]
[1749416963523,0.05371085,106290.0,106280.0,1.49668177]
[1749416965169,0.04430272,106290.0,106280.0,1.49668177]
[1749416966917,0.04430272,106290.0,106280.0,1.58292177]
[1749416969966,0.02870272,106290.0,106280.0,1.58292177]
[1749416978701,0.01929468,106290.0,106280.0,1.58292177]
[1749416978913,0.02870263,106290.0,106280.0,1.58292177]
[1749416985439,0.00047922,106290.0,106280.0,2.21369616]
[1749416985648,0.01929433,106290.0,106280.0,2.21369616]
[1749416986583,0.01929433,106290.0,106280.0,1.61522177]
[1749416986718,0.00988664,106290.0,106280.0,1.61522177]
[1749416986918,0.01929433,106290.0,106280.0,1.61522177]
[1749416987119,0.01929424,106290.0,106280.0,1.61522177]
[1749416990279,0.01929424,106290.0,106280.0,1.59932177]
[1749416991698,0.02870193,106290.0,106280.0,1.59932177]
[1749416998755,0.03810979,106290.0,106280.0,1.58292177]
[1749416998972,0.02870193,106290.0,106280.0,1.58292177]
[1749416999585,0.03810979,106290.0,106280.0,1.58292177]
[1749417001173,0.02870193,106290.0,106280.0,1.58292177]
[1749417001569,0.03810979,106290.0,106280.0,1.58292177]
[1749417002299,0.02870193,106290.0,106280.0,1.58292177]
[1749417002555,0.03810971,106290.0,106280.0,1.58292177]
[1749417008940,0.02870193,106290.0,106280.0,1.58292177]
[1749417010535,0.00988664,106290.0,106280.0,1.58292177]
[1749417010739,0.01929433,106290.0,106280.0,1.58292177]
[1749417011999,0.01929424,106290.0,106280.0,1.59882177]
[1749417013809,0.0287021,106290.0,106280.0,1.59882177]
[1749417014016,0.02870202,106290.0,106280.0,1.59882177]
[1749417014241,0.02870193,106290.0,106280.0,1.59882177]
[1749417015844,0.01929424,106290.0,106280.0,1.59882177]
[1749417016379,0.00988664,106290.0,106280.0,1.59882177]
[1749417016786,0.01929424,106290.0,106280.0,1.59882177]
[1749417017649,0.01929433,106290.0,106280.0,1.59882177]
[1749417018881,0.01929433,106290.0,106280.0,1.22826177]
[1749417019112,0.02870211,106290.0,106280.0,0.98428738]
[1749417019314,0.03810997,106290.0,106280.0,0.98428738]
[1749417019581,0.03810997,106290.0,106280.0,1.58276177]
[1749417021122,0.03810997,106290.0,106280.0,1.49652177]
[1749417036448,0.04751792,106290.0,106280.0,1.49652177]
[1749417044650,0.03810997,106290.0,106280.0,1.49652177]
[1749417057765,0.04751792,106290.0,106280.0,1.49652177]
[1749417061948,0.03811006,106290.0,106280.0,1.49652177]
[1749417065547,0.03811006,106290.0,106280.0,1.49176257]
[1749417089107,0.03811006,106290.0,106280.0,2.09023696]
[1749417092319,0.01929433,106290.0,106280.0,2.09023696]
[1749417092516,0.02870219,106290.0,106280.0,2.17647696]
[1749417092929,0.02870219,106290.0,106280.0,2.19267696]
[1749417093537,0.02870219,106290.0,106280.0,2.20857696]
[1749417095287,0.02870219,106290.0,106280.0,2.20497644]
[1749417095712,0.02870219,106290.0,106280.0,2.18907644]
[1749417096908,0.02870219,106290.0,106280.0,2.10283644]
[1749417097771,0.02870211,106290.0,106280.0,2.10283644]
[1749417102243,0.02870211,106290.0,106280.0,2.08663644]
[1749417110150,0.00047922,106290.0,106280.0,2.13297729]
[1749417110355,0.00047922,106290.0,106280.0,2.21921729]
[1749417113002,0.00047922,106290.0,106280.0,2.51751729]
[1749417114794,0.00988664,106290.0,106280.0,2.51751729]
[1749417118805,0.01929415,106290.0,106280.0,2.51751729]
[1749417122367,0.00988664,106290.0,106280.0,2.51751729]
[1749417123017,0.01929415,106290.0,106280.0,2.51751729]
[1749417127381,0.02870184,106290.0,106280.0,2.50171729]
[1749417127606,0.01929415,106290.0,106280.0,2.50171729]
[1749417131844,0.02870175,106290.0,106280.0,2.50171729]
[1749417132059,0.03810961,106290.0,106280.0,2.50171729]
[1749417132283,0.02870175,106290.0,106280.0,2.50171729]
[1749417132508,0.03810944,106290.0,106280.0,2.50171729]
[1749417132746,0.04751722,106290.0,106280.0,2.50171729]
[1749417133348,0.02870175,106290.0,106280.0,2.50171729]
[1749417133557,0.03810944,106290.0,106280.0,2.50171729]
[1749417135857,0.03810944,106290.0,106280.0,2.23571729]
[1749417140765,0.02870175,106290.0,106280.0,2.23571729]
[1749417145999,0.02870175,106290.0,106280.0,2.14947729]
[1749417147362,0.02870175,106290.0,106280.0,2.14747729]
[1749417147769,0.02870175,106290.0,106280.0,2.14847729]
[1749417154494,0.03810944,106290.0,106280.0,2.14847729]
[1749417157254,0.03810944,106290.0,106280.0,0.66736851]
[1749417157471,0.03810944,106290.0,106280.0,2.14839729]
[1749417161112,0.0475173,106290.0,106280.0,2.14839729]
[1749417164461,0.03810944,106290.0,106280.0,2.14839729]
[1749417183135,0.03810944,106290.0,106280.0,1.86431729]
[1749417183381,0.03810944,106290.0,106280.0,2.14839729]
[1749417184375,0.03810944,106290.0,106280.0,1.86431729]
[1749417184583,0.03810944,106290.0,106280.0,2.14835729]
[1749417184781,0.03810944,106290.0,106280.0,1.86431729]
[1749417184943,0.03810944,106290.0,106280.0,2.14835729]
[1749417186270,0.03810944,106290.0,106280.0,1.86431729]
[1749417186529,0.03810944,106290.0,106280.0,2.14835729]
[1749417187354,0.02870175,106290.0,106280.0,2.14835729]
[1749417196801,0.01929415,106290.0,106280.0,2.14835729]
[1749417197352,0.02870184,106290.0,106280.0,2.14835729]
[1749417197563,0.01929415,106290.0,106280.0,2.14835729]
[1749417197769,0.02870175,106290.0,106280.0,2.14835729]
[1749417200941,0.01929415,106290.0,106280.0,2.14835729]
[1749417202403,0.02870175,106290.0,106280.0,2.14835729]
[1749417206454,0.02870175,106290.0,106280.0,0.95140851]
[1749417206729,0.02870175,106290.0,106280.0,2.14835729]
[1749417209195,0.01929415,106290.0,106280.0,2.14835729]
[1749417209401,0.02870184,106290.0,106280.0,2.14835729]
[1749417211747,0.01929415,106290.0,106280.0,2.14835729]
[1749417212367,0.02870184,106290.0,106280.0,2.14835729]
[1749417215013,0.01929415,106290.0,106280.0,2.14835729]
[1749417215188,0.02870175,106290.0,106280.0,2.14835729]
[1749417225287,0.02870175,106290.0,106280.0,0.95140851]
[1749417225514,0.02870175,106290.0,106280.0,2.14835729]
[1749417228778,0.01929415,106290.0,106280.0,2.14835729]
[1749417231554,0.00047922,106290.0,106280.0,2.14835729]
[1749417231855,0.00988673,106290.0,106280.0,2.14835729]
[1749417232045,0.00047922,106290.0,106280.0,2.14835729]
[1749417232245,0.00988664,106290.0,106280.0,2.14835729]
[1749417237420,0.00988664,106290.0,106280.0,2.14692077]
[1749417240306,0.00047922,106290.0,106280.0,2.50212077]
[1749417240529,0.00047922,106290.0,106280.0,2.51872077]
[1749417245247,0.00047922,106290.0,106280.0,2.50212077]
[1749417245670,0.00047922,106290.0,106280.0,2.51732077]
[1749417255383,0.00047922,106290.0,106280.0,3.16579516]
[1749417256865,0.00047922,106290.0,106280.0,3.16379516]
[1749417257246,0.00147922,106290.0,106280.0,3.16579516]
[1749417257795,0.00147922,106290.0,106280.0,3.16879516]
[1749417265460,0.00147922,106290.0,106280.0,3.21879516]
[1749417270827,0.015,106320.0,106310.0,1.16936257]
[1749417271041,0.0150479,106320.0,106310.0,1.93402205]
[1749417271476,0.0150479,106320.0,106310.0,1.96227305]
[1749417271688,0.0150479,106320.0,106310.0,1.97143342]
[1749417272304,0.0160479,106320.0,106310.0,1.97143342]
[1749417272715,0.0160479,106320.0,106310.0,1.99970057]
[1749417272941,0.0170479,106320.0,106310.0,1.99970057]
[1749417274424,0.0335479,106320.0,106310.0,1.99970057]
[1749417275699,0.0170479,106320.0,106310.0,1.99970057]
[1749417277475,0.0170479,106320.0,106310.0,2.59817496]
[1749417277689,0.0170479,106320.0,106310.0,1.99970057]
[1749417278081,0.0170479,106320.0,106310.0,2.59817496]
[1749417280547,0.0020479,106320.0,106310.0,2.59817496]
[1749417286314,0.0020479,106320.0,106310.0,2.61367496]
[1749417288914,0.0020479,106320.0,106310.0,2.59817496]
[1749417290488,0.0020479,106320.0,106310.0,2.61357496]
[1749417292243,0.0020479,106320.0,106310.0,2.59817496]
[1749417292667,0.0020479,106320.0,106310.0,2.61317496]
[1749417296359,0.0020479,106320.0,106310.0,2.61427496]
[1749417308130,0.0020479,106320.0,106310.0,2.59817496]
[1749417310501,0.0020479,106320.0,106310.0,2.61447496]
[1749417312091,0.0020479,106320.0,106310.0,2.62997496]
[1749417314304,0.0020479,106320.0,106310.0,2.61437496]
[1749417315161,4.79e-05,106320.0,106310.0,2.61437496]
[1749417317423,4.79e-05,106320.0,106310.0,2.59817496]
[1749417319900,4.79e-05,106320.0,106310.0,2.61437496]
[1749417320348,4.79e-05,106320.0,106310.0,2.59817496]
[1749417320575,4.79e-05,106320.0,106310.0,2.61437496]
[1749417322731,4.79e-05,106320.0,106310.0,2.63097496]
[1749417323691,4.79e-05,106320.0,106310.0,1.96271496]
[1749417323912,0.0319479,106320.0,106310.0,1.61520057]
[1749417324139,0.04135276,106320.0,106310.0,1.61520057]
[1749417324395,0.24827488,106320.0,106310.0,0.18243948]
[1749417324629,0.22823532,106310.0,106300.0,0.00920549]
[1749417324858,0.05892103,106300.0,106290.0,1.09862095]
[1749417325105,0.05892032,106300.0,106290.0,0.91126043]
[1749417325341,0.05892041,106300.0,106290.0,0.93951561]
[1749417325577,0.06832774,106300.0,106290.0,1.29046821]
[1749417325811,0.23766115,106300.0,106290.0,1.27165414]
[1749417326518,0.23766115,106300.0,106290.0,1.62124081]
[1749417326739,0.23766115,106300.0,106290.0,1.6306485]
[1749417327185,0.23766115,106300.0,106290.0,1.61165422]
[1749417327406,0.23766115,106300.0,106290.0,1.621062]
[1749417327615,0.22825408,106300.0,106290.0,1.59283832]
[1749417327821,0.21884675,106300.0,106290.0,1.00377206]
[1749417328654,0.21884675,106300.0,106290.0,1.0131801]
[1749417328859,0.21884675,106300.0,106290.0,1.00377206]
[1749417329063,0.21884675,106300.0,106290.0,1.01317992]
[1749417329684,0.22825391,106300.0,106290.0,1.02258761]
[1749417330307,0.22825391,106300.0,106290.0,1.03214582]
[1749417331260,0.22825391,106300.0,106290.0,1.63062021]
[1749417331481,0.22825391,106300.0,106290.0,1.61165449]
[1749417331686,0.22825391,106300.0,106290.0,1.63047022]
[1749417332695,0.22825391,106300.0,106290.0,1.63987791]
[1749417333953,0.22825391,106300.0,106290.0,1.04140352]
[1749417334149,0.22825391,106300.0,106290.0,1.04132122]
[1749417334536,0.22825391,106300.0,106290.0,1.050729]
[1749417335215,0.22825391,106300.0,106290.0,1.04140369]
[1749417335981,0.22825391,106300.0,106290.0,1.63987808]
[1749417336595,0.22825391,106300.0,106290.0,1.04140369]
[1749417336793,0.22825391,106300.0,106290.0,1.05082855]
[1749417336965,0.22825391,106300.0,106290.0,1.64930294]
[1749417337360,0.22825391,106300.0,106290.0,1.63987808]
[1749417339325,0.0401068,106300.0,106290.0,1.63987808]
[1749417339538,0.0401068,106300.0,106290.0,1.63987755]
[1749417339737,0.0401068,106300.0,106290.0,1.04140316]
[1749417340191,0.0401068,106300.0,106290.0,1.05088813]
[1749417340553,0.04951334,106300.0,106290.0,1.05088813]
[1749417340964,0.04951334,106300.0,106290.0,1.64936252]
[1749417341189,0.04010654,106300.0,106290.0,1.05088813]
[1749417341396,0.04951334,106300.0,106290.0,1.64936252]
[1749417341979,0.04010654,106300.0,106290.0,1.64936252]
[1749417342180,0.04951325,106300.0,106290.0,1.64936252]
[1749417343711,0.04010654,106300.0,106290.0,1.64936252]
[1749417343911,0.04951325,106300.0,106290.0,1.64936252]
[1749417345070,0.04010654,106300.0,106290.0,1.64936252]
[1749417345229,0.04951325,106300.0,106290.0,1.64936252]
[1749417346002,0.04951316,106300.0,106290.0,1.64936252]
[1749417352150,0.04010654,106300.0,106290.0,1.64936252]
[1749417355342,0.04951316,106300.0,106290.0,1.64936252]
[1749417355958,0.04010654,106300.0,106290.0,1.64936252]
[1749417359898,0.04951325,106300.0,106290.0,1.64936252]
[1749417360528,0.04010654,106300.0,106290.0,1.64936252]
[1749417360743,0.04951316,106300.0,106290.0,1.64936252]
[1749417361627,0.05891987,106300.0,106290.0,1.64936252]
[1749417362062,0.04010654,106300.0,106290.0,1.64936252]
[1749417362494,0.0307,106300.0,106290.0,1.64936252]
[1749417363305,0.04010662,106300.0,106290.0,1.64936252]
[1749417363962,0.04010662,106300.0,106290.0,1.63987755]
[1749417364524,0.0307,106300.0,106290.0,1.63987755]
[1749417371688,0.0155,106300.0,106290.0,1.63987755]
[1749417374203,0.0155,106300.0,106290.0,1.55383755]
[1749417374851,0.02490662,106300.0,106290.0,1.55383755]
[1749417375660,0.0155,106300.0,106290.0,1.55383755]
[1749417375816,0.02490654,106300.0,106290.0,1.55383755]
[1749417377465,0.02471838,106300.0,106290.0,1.55383755]
[1749417379315,0.03412518,106300.0,106290.0,1.55383755]
[1749417379523,0.03412509,106300.0,106290.0,1.55383755]
[1749417379690,0.02471838,106300.0,106290.0,1.55383755]
[1749417379907,0.034125,106300.0,106290.0,1.55383755]
[1749417382210,0.02471838,106300.0,106290.0,1.55383755]
[1749417382409,0.034125,106300.0,106290.0,1.55383755]
[1749417382612,0.02471838,106300.0,106290.0,1.55383755]
[1749417382817,0.02471846,106300.0,106290.0,1.55383755]
[1749417389962,0.03412517,106300.0,106290.0,1.55383755]
[1749417391524,0.02471846,106300.0,106290.0,1.55383755]
[1749417392787,0.02471838,106300.0,106290.0,1.55383755]
[1749417392986,0.03412509,106300.0,106290.0,1.55383755]
[1749417405181,0.05071263,106310.0,106300.0,0.21636795]
[1749417405391,0.27080176,106310.0,106300.0,0.21636795]
[1749417405818,0.27080176,106310.0,106300.0,0.20696115]
[1749417406239,0.27080176,106310.0,106300.0,0.20416096]
[1749417406598,0.27180176,106310.0,106300.0,0.20416096]
[1749417407225,0.27280176,106310.0,106300.0,0.20416096]
[1749417408011,0.27280176,106310.0,106300.0,0.21356794]
[1749417408601,0.26339549,106310.0,106300.0,0.20416096]
[1749417410031,0.26339549,106310.0,106300.0,0.19755408]
[1749417410297,0.25398913,106310.0,106300.0,0.21636848]
[1749417412091,0.24458268,106310.0,106300.0,0.21636848]
[1749417413598,0.24458268,106310.0,106300.0,0.20696132]
[1749417413801,0.24458268,106310.0,106300.0,0.00940733]
[1749417414848,0.24458285,106310.0,106300.0,0.00940733]
[1749417415984,0.24458285,106310.0,106300.0,0.29320733]
[1749417416561,0.23149548,106310.0,106300.0,0.50016813]
[1749417416991,0.23149548,106310.0,106300.0,0.49076124]
[1749417417145,0.23149548,106310.0,106300.0,0.50016831]
[1749417417345,0.23149548,106310.0,106300.0,1.0986427]
[1749417417564,0.23149548,106310.0,106300.0,1.10804959]
[1749417417778,0.23149548,106310.0,106300.0,1.10804968]
[1749417418196,0.23149548,106310.0,106300.0,1.11745657]
[1749417420746,0.23149548,106310.0,106300.0,1.10804924]
[1749417427695,0.23149548,106310.0,106300.0,1.11745604]
[1749417431615,0.23149548,106310.0,106300.0,0.51898165]
[1749417436881,0.23149548,106310.0,106300.0,0.51894165]
[1749417438320,0.23149548,106310.0,106300.0,0.23518165]
[1749417438555,0.23149548,106310.0,106300.0,0.51894165]
[1749417439256,0.24689548,106310.0,106300.0,0.51894165]
[1749417439871,0.23149548,106310.0,106300.0,0.51894165]
[1749417441792,0.04336643,106310.0,106300.0,0.51894165]
[1749417447997,0.23149548,106310.0,106300.0,0.51894165]
[1749417452026,0.24659548,106310.0,106300.0,0.51894165]
[1749417454063,0.22404168,106310.0,106300.0,0.51894165]
[1749417454249,0.24659501,106310.0,106300.0,0.51894165]
[1749417455560,0.04336596,106310.0,106300.0,0.51894165]
[1749417456206,0.04336543,106310.0,106300.0,0.51894165]
[1749417456420,0.05277179,106310.0,106300.0,0.51894165]
[1749417457389,0.05277179,106310.0,106300.0,1.11741604]
[1749417458172,0.06217824,106310.0,106300.0,1.11741604]
[1749417459961,0.06217824,106310.0,106300.0,0.51894165]
[1749417462803,0.06217759,106310.0,106300.0,0.5189412]
[1749417463687,0.03962491,106310.0,106300.0,0.5189412]
[1749417466332,0.0208121,106310.0,106300.0,0.5189412]
[1749417466535,0.03021837,106310.0,106300.0,0.5189412]
[1749417466959,0.03021837,106310.0,106300.0,1.11741559]
[1749417480838,0.03962473,106310.0,106300.0,1.11741559]
[1749417483901,0.03962473,106310.0,106300.0,0.5189412]
[1749417487405,0.04903118,106310.0,106300.0,0.5189412]
[1749417488695,0.23716023,106310.0,106300.0,0.5189412]
[1749417491664,0.22775431,106310.0,106300.0,0.50953449]
[1749417493468,0.2317355,106310.0,106300.0,0.28472]
[1749417493653,0.25429098,106310.0,106300.0,0.49168098]
[1749417493897,0.25429098,106310.0,106300.0,0.50108796]
[1749417494576,0.25429098,106310.0,106300.0,0.51049485]
[1749417494766,0.2317355,106310.0,106300.0,0.51049485]
[1749417495765,0.25428994,106310.0,106300.0,0.51049485]
[1749417496745,0.25428965,106310.0,106300.0,0.51049485]
[1749417497166,0.05896678,106310.0,106300.0,0.51990165]
[1749417497608,0.06837252,106310.0,106300.0,1.11837559]
[1749417497804,0.07777888,106310.0,106300.0,1.11837559]
[1749417498472,0.06837252,106310.0,106300.0,1.11837559]
[1749417500393,0.05277252,106310.0,106300.0,1.11837559]
[1749417501047,0.002,106310.0,106300.0,2.18504946]
[1749417501265,0.002,106310.0,106300.0,2.27104946]
[1749417506292,0.002,106310.0,106300.0,2.56934946]
[1749417507347,0.002,106310.0,106300.0,3.16782385]
[1749417508248,0.001,106310.0,106300.0,3.16782385]
[1749417508471,4.79e-05,106320.0,106310.0,0.55634733]
[1749417508719,4.79e-05,106320.0,106310.0,1.2838212]
[1749417508987,4.79e-05,106320.0,106310.0,1.88229559]
[1749417511868,4.79e-05,106320.0,106310.0,2.25884359]
[1749417514654,4.79e-05,106320.0,106310.0,2.85731798]
[1749417514864,4.79e-05,106320.0,106310.0,2.25884359]
[1749417515086,4.79e-05,106320.0,106310.0,2.85731798]
[1749417515700,4.79e-05,106320.0,106310.0,2.25884359]
[1749417516978,4.79e-05,106320.0,106310.0,2.85731798]
[1749417517377,4.79e-05,106320.0,106310.0,2.25884359]
[1749417517586,4.79e-05,106320.0,106310.0,2.85731798]
[1749417518617,4.79e-05,106320.0,106310.0,2.85931798]
[1749417518823,4.79e-05,106320.0,106310.0,2.86131798]
[1749417544430,4.79e-05,106320.0,106310.0,2.26284359]
[1749417544650,4.79e-05,106320.0,106310.0,2.54792359]
[1749417544990,4.79e-05,106320.0,106310.0,3.14639798]
[1749417545859,4.79e-05,106320.0,106310.0,2.26740359]
[1749417546062,4.79e-05,106320.0,106310.0,2.60248359]
[1749417547172,4.79e-05,106320.0,106310.0,2.60252359]
[1749417550854,4.79e-05,106320.0,106310.0,2.18024359]
[1749417551053,0.0316479,106320.0,106310.0,1.6685292]
[1749417551252,0.0316479,106320.0,106310.0,2.55208359]
[1749417552139,0.0316479,106320.0,106310.0,2.56662444]
[1749417553192,0.0164479,106320.0,106310.0,2.56662444]
[1749417557526,0.0327479,106320.0,106310.0,2.56662444]
[1749417560502,0.0164479,106320.0,106310.0,2.56662444]
[1749417561168,0.0164479,106320.0,106310.0,3.05430444]
[1749417563835,4.79e-05,106320.0,106310.0,3.05430444]
[1749417564268,4.79e-05,106320.0,106310.0,3.68437883]
[1749417564487,4.79e-05,106320.0,106310.0,3.73437883]
[1749417565866,4.79e-05,106320.0,106310.0,3.13590444]
[1749417566927,4.79e-05,106320.0,106310.0,3.73437883]
[1749417569236,4.79e-05,106320.0,106310.0,3.43607883]
[1749417569733,0.0311,106350.0,106340.0,0.23082716]
[1749417569983,0.03119028,106350.0,106340.0,1.89597542]
[1749417570415,0.03119028,106350.0,106340.0,1.92421742]
[1749417570858,0.03419028,106350.0,106340.0,1.92421742]
[1749417571092,0.03619028,106350.0,106340.0,1.95221938]
[1749417573363,0.02029028,106350.0,106340.0,1.55096711]
[1749417574195,0.01829028,106350.0,106340.0,1.55096711]
[1749417574410,0.01729028,106350.0,106340.0,1.55096711]
[1749417574633,0.01929028,106350.0,106340.0,1.55096711]
[1749417576484,0.00409028,106350.0,106340.0,1.55096711]
[1749417579239,0.00409028,106350.0,106340.0,1.56596711]
[1749417579670,0.00409028,106350.0,106340.0,1.55096711]
[1749417583632,0.00409028,106350.0,106340.0,2.03856711]
[1749417584993,0.00409028,106350.0,106340.0,2.05356711]
[1749417585197,0.00409028,106350.0,106340.0,2.03856711]
[1749417587045,0.00409028,106350.0,106340.0,2.05356711]
[1749417593220,0.00409028,106350.0,106340.0,2.45127812]
[1749417594914,0.00209028,106350.0,106340.0,2.45127812]
[1749417595139,9.028e-05,106350.0,106340.0,2.45127812]
[1749417597147,9.028e-05,106350.0,106340.0,2.46717812]
[1749417598839,9.028e-05,106350.0,106340.0,2.45127812]
[1749417599265,9.028e-05,106350.0,106340.0,2.43627812]
[1749417602514,9.028e-05,106350.0,106340.0,2.45237812]
[1749417605587,9.028e-05,106350.0,106340.0,2.43627812]
[1749417607692,9.028e-05,106350.0,106340.0,2.50237812]
[1749417608107,9.028e-05,106350.0,106340.0,3.11438188]
[1749417608310,9.028e-05,106350.0,106340.0,2.51767812]
[1749417614850,9.028e-05,106350.0,106340.0,2.85767812]
[1749417617959,9.028e-05,106350.0,106340.0,2.84237812]
[1749417629724,9.028e-05,106350.0,106340.0,3.45478188]
[1749417629928,9.028e-05,106350.0,106340.0,2.85807812]
[1749417631144,9.028e-05,106350.0,106340.0,2.84237812]
[1749417634378,9.028e-05,106350.0,106340.0,2.82627812]
[1749417644735,9.028e-05,106350.0,106340.0,1.6328706]
[1749417644940,9.028e-05,106350.0,106340.0,2.82627812]
[1749417657441,9.028e-05,106350.0,106340.0,3.42298188]
[1749417657794,9.028e-05,106350.0,106340.0,2.82627812]
[1749417660276,9.028e-05,106350.0,106340.0,3.12457812]
[1749417665192,9.028e-05,106350.0,106340.0,3.72128188]
[1749417670412,9.028e-05,106350.0,106340.0,3.12457812]
[1749417681613,9.028e-05,106350.0,106340.0,1.9311706]
[1749417681824,9.028e-05,106350.0,106340.0,3.12457812]
[1749417682587,9.028e-05,106350.0,106340.0,3.13997812]
[1749417683020,9.028e-05,106350.0,106340.0,3.73668188]
[1749417688679,9.028e-05,106350.0,106340.0,3.73612188]
[1749417696539,9.028e-05,106350.0,106340.0,3.72072188]
[1749417696948,9.028e-05,106350.0,106340.0,3.73612188]
[1749417698482,9.028e-05,106350.0,106340.0,3.75182188]
[1749417703763,9.028e-05,106350.0,106340.0,3.72072188]
[1749417708113,0.01639028,106350.0,106340.0,3.72072188]
[1749417709311,9.028e-05,106350.0,106340.0,3.72072188]
[1749417725161,9.028e-05,106350.0,106340.0,3.73602188]
[1749417727565,9.028e-05,106350.0,106340.0,3.72072188]
[1749417729965,0.03059028,106350.0,106340.0,3.72072188]
[1749417731252,0.01529028,106350.0,106340.0,3.72072188]
[1749417733865,9.028e-05,106350.0,106340.0,3.72072188]
[1749417734022,0.01569028,106350.0,106340.0,3.72072188]
[1749417737994,9.028e-05,106350.0,106340.0,3.72072188]
[1749417743594,9.028e-05,106350.0,106340.0,3.34948188]
[1749417743794,9.028e-05,106350.0,106340.0,3.71960188]
[1749417745867,9.028e-05,106350.0,106340.0,3.34948188]
[1749417745992,9.028e-05,106350.0,106340.0,3.71960188]
[1749417746189,9.028e-05,106350.0,106340.0,3.34948188]
[1749417746398,9.028e-05,106350.0,106340.0,3.71960188]
[1749417749163,9.028e-05,106350.0,106340.0,3.73470188]
[1749417751446,9.028e-05,106350.0,106340.0,3.71960188]
[1749417752392,9.028e-05,106350.0,106340.0,3.72060188]
[1749417752787,9.028e-05,106350.0,106340.0,3.72160188]
[1749417759942,9.028e-05,106350.0,106340.0,3.72156188]
[1749417760160,0.01669028,106350.0,106340.0,3.72156188]
[1749417761906,0.01669028,106350.0,106340.0,3.35148188]
[1749417762107,0.01669028,106350.0,106340.0,3.72156188]
[1749417766308,0.01669028,106350.0,106340.0,3.35148188]
[1749417766446,0.01669028,106350.0,106340.0,3.72156188]
[1749417778645,9.028e-05,106350.0,106340.0,3.72156188]
[1749417780854,9.028e-05,106350.0,106340.0,4.26328188]
[1749417789086,0.01569028,106350.0,106340.0,4.26328188]
[1749417789850,9.028e-05,106350.0,106340.0,4.26328188]
[1749417801874,9.028e-05,106350.0,106340.0,4.27908188]
[1749417808000,9.028e-05,106350.0,106340.0,4.26328188]
[1749417813855,9.028e-05,106350.0,106340.0,3.72156188]
[1749417828358,9.028e-05,106350.0,106340.0,3.72152188]
[1749417835210,9.028e-05,106350.0,106340.0,3.43764188]
[1749417835425,9.028e-05,106350.0,106340.0,3.72148188]
[1749417836576,9.028e-05,106350.0,106340.0,3.73758188]
[1749417836795,9.028e-05,106350.0,106340.0,3.72148188]
[1749417838700,9.028e-05,106350.0,106340.0,4.26320188]
[1749417839959,9.028e-05,106350.0,106340.0,2.4730906]
[1749417840140,9.028e-05,106350.0,106340.0,4.26320188]